fUSD/lending_fUSD_20260121
["ID","MTS","AMOUNT","RATE_DAILY","PERIOD"]
[402996487,1769029839098,-1100.0,0.000421,15]
[402996488,1769029839107,-300.220502,0.00042192,110]
[402996489,1769029839116,-1500.0,0.000422,15]
[402996492,1769029839452,-153.0,0.000422,120]
[402996493,1769029839473,-1224.14,0.00042259,30]
[402996494,1769029839483,-484.09,0.00042259,30]
[402996495,1769029839493,-612.13,0.00042259,30]
[402996496,1769029839503,-484.09,0.00042259,30]
[402996497,1769029839513,-484.09,0.00042259,30]
[402996498,1769029839522,-485.47,0.00042259,30]
[402996499,1769029839532,-481.02,0.00042259,30]
[402996500,1769029839542,-1900.0,0.000423,15]
[402996501,1769029839551,-612.13,0.00042356,30]
[402996502,1769029839560,-484.09,0.00042356,30]
[402996503,1769029839569,-967.63,0.00042356,30]
[402996504,1769029839579,-300.0,0.000424,15]
[402996505,1769029839588,-179.72,0.00042493,30]
[402996506,1769029839598,-558.13,0.00042493,30]
[402996507,1769029839608,-171.97,0.00042493,30]
[402996508,1769029839619,-300.0,0.000425,15]
[402996509,1769029839629,-674.81978247,0.00042506,120]
[402996510,1769029839639,-300.0,0.000426,15]
[402996511,1769029839648,-200.0,0.00042652,120]
[402996512,1769029839658,-2000.0,0.000427,2]
[402996513,1769029839668,-300.0,0.000427,15]
[402996514,1769029839679,-2175.00135,0.00042747,120]
[402996515,1769029839689,-150.0,0.00042795,60]
[402996516,1769029839699,-150.0,0.00042795,60]
[402996517,1769029839708,-150.0,0.00042795,60]
[402996518,1769029839718,-500.0,0.00042795,60]
[402996519,1769029839728,-150.0,0.00042795,60]
[402996520,1769029839737,-150.0,0.00042795,60]
[402996521,1769029839746,-500.0,0.00042795,120]
[402996522,1769029839756,-421.0,0.00042795,60]
[402996523,1769029839765,-437.0,0.00042795,60]
[402996524,1769029839774,-462.0,0.00042795,60]
[402996525,1769029839783,-500.0,0.00042795,60]
[402996526,1769029839793,-150.0,0.00042795,2]
[402996527,1769029839802,-153.0,0.000428,120]
[402996528,1769029839811,-1174.0,0.000428,15]
[402996529,1769029839820,-200.00000017,0.0004285,60]
[402996530,1769029839829,-150.0,0.0004285,60]
[402996531,1769029839838,-150.0,0.0004285,60]
[402996532,1769029839847,-500.0,0.0004285,60]
[402996533,1769029839856,-150.0,0.0004285,60]
[402996534,1769029839865,-153.61434258,0.0004285,60]
[402996535,1769029839875,-500.0,0.0004285,120]
[402996536,1769029839884,-421.0,0.0004285,60]
[402996537,1769029839893,-437.0,0.0004285,60]
[402996538,1769029839902,-462.0,0.0004285,60]
[402996539,1769029839911,-500.0,0.0004285,60]
[402996540,1769029839920,-217.72624624,0.00042905,60]
[402996541,1769029839929,-250.0,0.00042905,60]
[402996542,1769029839939,-500.0,0.00042905,60]
[402996543,1769029839948,-200.0,0.00042905,60]
[402996544,1769029839957,-500.0,0.00042905,120]
[402996545,1769029839966,-421.0,0.00042905,60]
[402996547,1769029839975,-437.0,0.00042905,60]
[402996548,1769029839985,-462.0,0.00042905,60]
[402996549,1769029839994,-362.36201849,0.00042905,60]
[402996550,1769029840014,-500.0,0.00042959,60]
[402996551,1769029840024,-500.0,0.00042959,120]
[402996552,1769029840034,-421.0,0.00042959,60]
[402996553,1769029840044,-437.0,0.00042959,60]
[402996554,1769029840057,-462.0,0.00042959,60]
[402996555,1769029840067,-169.0,0.00043,90]
[402996556,1769029840078,-1500.0,0.00043,30]
[402996557,1769029840090,-500.0,0.00043014,120]
[402996558,1769029840100,-421.0,0.00043014,60]
[402996559,1769029840109,-437.0,0.00043014,60]
[402996560,1769029840119,-462.0,0.00043014,60]
[402996561,1769029840129,-500.0,0.00043069,120]
[402996562,1769029840139,-421.0,0.00043069,60]
[402996563,1769029840148,-437.0,0.00043069,60]
[402996564,1769029840158,-462.0,0.00043069,60]
[402996565,1769029840168,-322.4501214,0.00043069,120]
[402996566,1769029840178,-500.0,0.00043124,120]
[402996567,1769029840187,-421.0,0.00043124,60]
[402996568,1769029840197,-437.0,0.00043124,60]
[402996569,1769029840206,-462.0,0.00043124,60]
[402996570,1769029840216,-900.0,0.00043153,16]
[402996571,1769029840225,-900.0,0.00043153,16]
[402996572,1769029840235,-900.0,0.00043153,16]
[402996573,1769029840245,-900.0,0.00043153,16]
[402996574,1769029840254,-900.0,0.00043153,16]
[402996575,1769029840267,-900.0,0.00043153,16]
[402996576,1769029840277,-900.0,0.00043153,16]
[402996577,1769029840287,-900.0,0.00043153,16]
[402996578,1769029840297,-900.0,0.00043153,16]
[402996579,1769029840307,-900.0,0.00043153,16]
[402996580,1769029840317,-472.80343081,0.00043179,120]
[402996581,1769029840327,-421.0,0.00043179,60]
[402996582,1769029840336,-437.0,0.00043179,60]
[402996583,1769029840346,-462.0,0.00043179,60]
[402996584,1769029840356,-709.22678517,0.00043188,15]
[402996585,1769029840369,-709.2267851,0.00043191,15]
[402996586,1769029840379,-709.2267851,0.00043194,15]
[402996587,1769029840389,-709.2267851,0.00043196,15]
[402996588,1769029840399,-709.2267851,0.00043199,15]
[402996589,1769029840409,-709.2267851,0.00043202,15]
[402996590,1769029840418,-709.2267851,0.00043205,15]
[402996591,1769029840428,-709.2267851,0.00043207,15]
[402996592,1769029840438,-709.2267851,0.0004321,15]
[402996593,1769029840447,-375.42969372,0.00043213,15]
[402996594,1769029840457,-674.81978247,0.00043213,120]
[402996595,1769029840467,-709.2267851,0.00043213,15]
[402996596,1769029840477,-3328.13844288,0.00043213,2]
[402996597,1769029840486,-629.69674764,0.00043213,120]
[402996598,1769029840496,-487.74229198,0.00043213,28]
[402996599,1769029840506,-5576.89314514,0.00043213,2]
[402996600,1769029840519,-484.09,0.00043218,30]
[402996601,1769029840529,-484.09,0.00043218,30]
[402996602,1769029840538,-484.09,0.00043218,30]
[402996603,1769029840548,-484.09,0.00043218,30]
[402996604,1769029840558,-484.09,0.00043218,30]
[402996605,1769029840571,-484.09,0.00043218,30]
[402996606,1769029840582,-484.09,0.00043218,30]
[402996607,1769029840592,-484.09,0.00043218,30]
[402996608,1769029840602,-484.09,0.00043218,30]
[402996609,1769029840612,-484.09,0.00043218,30]
[402996610,1769029840622,-484.09,0.00043218,30]
[402996611,1769029840632,-484.09,0.00043218,30]
[402996612,1769029840642,-484.09,0.00043218,30]
[402996613,1769029840651,-484.09,0.00043218,30]
[402996614,1769029840661,-1330.04044074,0.00043219,10]
[402996615,1769029840672,-4201.31215535,0.00043219,2]
[402996616,1769029840682,-421.0,0.00043233,60]
[402996617,1769029840692,-437.0,0.00043233,60]
[402996618,1769029840702,-462.0,0.00043233,60]
[402996619,1769029840712,-150.0,0.00043285,60]
[402996620,1769029840723,-186531.0904923,0.00043288,2]
[402996621,1769029840733,-8208.4421544,0.00043288,2]
[402996622,1769029840746,-421.0,0.00043288,60]
[402996623,1769029840756,-437.0,0.00043288,60]
[402996624,1769029840767,-462.0,0.00043288,60]
[402996625,1769029840777,-177.0,0.0004329,15]
[402996626,1769029840787,-151.39777899,0.0004329,10]
[402996627,1769029840797,-211.60880611,0.00043298,120]
[402996628,1769029840807,-150.0,0.000433,65]
[402996629,1769029840817,-500.0,0.000433,30]
[402996630,1769029840826,-500.0,0.000433,30]
[402996631,1769029840836,-500.0,0.000433,30]
[402996632,1769029840846,-500.0,0.000433,30]
[402996633,1769029840856,-500.0,0.000433,30]
[402996634,1769029840866,-500.0,0.000433,30]
[402996635,1769029840876,-500.0,0.000433,30]
[402996636,1769029840886,-500.0,0.000433,30]
[402996637,1769029840896,-500.0,0.000433,30]
[402996638,1769029840906,-500.0,0.000433,30]
[402996639,1769029840915,-500.0,0.000433,30]
[402996640,1769029840926,-500.0,0.000433,30]
[402996641,1769029840940,-500.0,0.000433,30]
[402996642,1769029840951,-500.0,0.000433,30]
[402996643,1769029840960,-500.0,0.000433,30]
[402996644,1769029840970,-500.0,0.000433,30]
[402996645,1769029840980,-500.0,0.000433,30]
[402996646,1769029840990,-500.0,0.000433,30]
[402996647,1769029840999,-500.0,0.000433,30]
[402996648,1769029841008,-500.0,0.000433,30]
[402996649,1769029841018,-500.0,0.000433,30]
[402996650,1769029841028,-500.0,0.000433,30]
[402996651,1769029841038,-500.0,0.000433,30]
[402996652,1769029841049,-500.0,0.000433,30]
[402996653,1769029841061,-500.0,0.000433,30]
[402996654,1769029841071,-500.0,0.000433,30]
[402996655,1769029841081,-401.7,0.000433,30]
[402996656,1769029841091,-150.0,0.000433,27]
[402996657,1769029841102,-1252.21001584,0.00043303,4]
[402996658,1769029841111,-3756.63004752,0.00043303,4]
[402996659,1769029841122,-508.13909761,0.00043303,7]
[402996660,1769029841131,-508.13909761,0.00043303,7]
[402996661,1769029841145,-508.13909761,0.00043303,7]
[402996662,1769029841154,-151.28,0.00043303,2]
[402996663,1769029841166,-151.28,0.00043303,2]
[402996664,1769029841176,-151.28,0.00043303,2]
[402996665,1769029841187,-151.28,0.00043303,2]
[402996666,1769029841198,-151.28,0.00043303,2]
[402996667,1769029841207,-164.065086,0.0004331,120]
[402996668,1769029841217,-300.0,0.00043312,30]
[402996669,1769029841228,-300.0,0.00043312,30]
[402996670,1769029841237,-300.0,0.00043312,30]
[402996671,1769029841247,-300.0,0.00043312,30]
[402996672,1769029841258,-300.0,0.00043312,30]
[402996673,1769029841269,-666.0,0.00043312,30]
[402996674,1769029841278,-300.0,0.00043312,30]
[402996675,1769029841288,-300.0,0.00043312,30]
[402996676,1769029841300,-150.0,0.00043312,20]
[402996677,1769029841309,-1000.0,0.00043312,30]
[402996678,1769029841320,-370.2528266,0.00043312,7]
[402996679,1769029841331,-200.0,0.00043313,120]
[402996680,1769029841341,-200.0,0.00043313,120]
[402996681,1769029841350,-200.0,0.00043313,120]
[402996682,1769029841360,-415.02855123,0.00043313,31]
[402996683,1769029841370,-17635.67090434,0.00043313,27]
[402996684,1769029841380,-63553.2094185,0.00043313,2]
[402996685,1769029841390,-18179.61237992,0.00043313,4]
[402996686,1769029841401,-184.09742413,0.00043313,30]
[402996687,1769029841410,-184.09742413,0.00043313,30]
[402996688,1769029841419,-184.09742413,0.00043313,30]
[402996689,1769029841429,-1382713.18160727,0.00043313,10]
[402996700,1769029843158,-1205.2,0.00043313,10]
[402996701,1769029843193,-12383.68292187,0.00043313,10]
[402996702,1769029843204,-527403.55152075,0.00043313,10]
[402996703,1769029843253,-9009.90000001,0.00043313,10]
[402996704,1769029846031,-571.14199105,0.0001906,2]
[402996707,1769029846161,-312.5,0.0001906,2]
[402996708,1769029846202,-1116.35800895,0.0001906,2]
[402996709,1769029846211,-559.73627975,0.0001906,2]
[402996710,1769029846553,-392.57999984,0.0001906,2]
[402996718,1769030148733,-1200.0,0.0001632,2]
[402996719,1769030148766,-550.0,0.0001632,2]
[402996720,1769030148932,-1200.0,0.00016321,2]
[402996721,1769030148943,-550.0,0.00016321,2]
[402996722,1769030148955,-1500.0,0.00016321,2]
[402996727,1769030811131,-163.16494567,0.00016311,2]
[402996728,1769030811153,-138.63424945,0.0001632,5]
[402996730,1769030864762,2374.68739009,0.00013,15]
[402996731,1769030913759,7625.32260991,0.00015,2]
[402996732,1769030913781,8472.40573858,0.00015,2]
[402996733,1769030974457,-490.31836322,0.00016221,2]
[402996734,1769031004965,166.66,0.00015747,2]
[402996735,1769031005150,166.66,0.00016078,2]
[402996736,1769031025658,2626.68,0.00013777,2]
[402996737,1769031025682,1527.60426142,0.00013777,2]
[402996738,1769031025705,8384.09573858,0.00013777,2]
[402996772,1769031031931,-509.68163678,0.00016221,2]
[402996774,1769031031941,-434.29470639,0.00016271,2]
[402996777,1769031031962,-165.70529361,0.00016271,2]
[402996779,1769031031971,-608.20780569,0.0001632,5]
[402996782,1769031031982,-362.32877736,0.0001632,5]
[402996784,1769031031992,-182.48947764,0.0001632,2]
[402996786,1769031032003,-385.53192891,0.00016345,2]
[402996788,1769031032014,-331.02,0.00016345,2]
[402996802,1769031032134,-483.44807109,0.00016345,2]
[402996804,1769031032143,-406.89735905,0.00016346,2]
[402996806,1769031032152,-300.0,0.00016383,2]
[402996808,1769031032162,-3434.40737254,0.00016384,2]
[402996810,1769031032172,-166.66,0.0001641,2]
[402996812,1769031032181,-150.0000008,0.00016484,2]
[402996814,1769031032190,-3434.40737249,0.00016552,2]
[402996816,1769031032199,-360.19857892,0.000166,2]
[402996818,1769031032208,-618.51,0.00016696,2]
[402996820,1769031032217,-621.44936148,0.00016721,2]
[402997016,1769031037763,-1002.90106709,0.00016721,2]
[402997017,1769031037777,-1810.05694392,0.00016721,2]
[402997018,1769031037787,-166.66,0.00016741,2]
[402997019,1769031037797,-3434.40737249,0.00016889,2]
[402997020,1769031037806,-3434.40737249,0.00017058,2]
[402997021,1769031037815,-166.66,0.00017073,2]
[402997022,1769031037825,-3434.40737249,0.00017226,2]
[402997023,1769031037834,-169.63,0.00017227,2]
[402997024,1769031037844,-1300.0,0.000173,6]
[402997025,1769031037853,-618.51,0.00017322,2]
[402997026,1769031037862,-3434.40737249,0.00017395,2]
[402997027,1769031037871,-2600.0,0.000174,6]
[402997028,1769031037880,-166.66,0.00017404,2]
[402997029,1769031037890,-550.0,0.00017499,2]
[402997030,1769031037900,-2062.52165185,0.000175,2]
[402997038,1769031037987,-12172.3352501,0.000175,2]
[402997040,1769031038005,-9570.61690741,0.000175,2]
[402997041,1769031038015,-1778.26926384,0.000175,3]
[402997042,1769031038024,-4000.0,0.000175,6]
[402997043,1769031038033,-1306.0,0.00017542,2]
[402997044,1769031038043,-3434.40737249,0.00017563,2]
[402997045,1769031038053,-1461.0,0.00017577,2]
[402997046,1769031038063,-5300.0,0.000176,6]
[402997047,1769031038258,-1817.0,0.00017612,2]
[402997048,1769031038285,-451.0,0.00017647,2]
[402997049,1769031038295,-6600.0,0.000177,6]
[402997050,1769031038304,-3434.40737249,0.00017732,2]
[402997051,1769031038313,-1300.0,0.000178,6]
[402997052,1769031038323,-600.0,0.00017843,2]
[402997053,1769031038332,-300.0,0.00017843,2]
[402997054,1769031038342,-250.0,0.00017843,2]
[402997055,1769031038351,-1000.17631861,0.0001786,2]
[402997056,1769031038360,-500.0,0.00017899,2]
[402997057,1769031038371,-2500.0,0.000179,2]
[402997058,1769031038381,-4837.9827,0.000179,2]
[402997059,1769031038390,-1300.0,0.000179,6]
[402997060,1769031038399,-10000.0,0.000179,2]
[402997061,1769031038408,-629.69674764,0.000179,2]
[402997062,1769031038418,-1664.06922144,0.000179,2]
[402997063,1769031038427,-3434.40737249,0.000179,2]
[402997064,1769031038436,-1033.55249603,0.000179,2]
[402997065,1769031038447,-195.5815019,0.000179,3]
[402997066,1769031038456,-2978.3755581,0.000179,2]
[402997067,1769031038465,-2788.44657257,0.000179,2]
[402997068,1769031038475,-420.0,0.00017905,2]
[402997069,1769031038484,-15055.0,0.00017918,2]
[402997070,1769031038493,-618.51,0.00017948,2]
[402997071,1769031038503,-250.0,0.00017952,2]
[402997072,1769031038512,-250.0,0.00017952,2]
[402997073,1769031038521,-1680.0,0.00017953,2]
[402997074,1769031038531,-150.0,0.00017973,2]
[402997075,1769031038540,-1524.41729282,0.0001799,2]
[402997076,1769031038550,-1524.41729282,0.0001799,2]
[402997077,1769031038559,-1524.41729282,0.0001799,2]
[402997078,1769031038568,-11836.50726652,0.00017999,2]
[402997079,1769031038578,-300.0,0.00017999,2]
[402997080,1769031038587,-666.0,0.00017999,2]
[402997081,1769031038596,-300.0,0.00017999,2]
[402997082,1769031038605,-150.0,0.00017999,2]
[402997083,1769031038614,-150.0,0.00017999,2]
[402997084,1769031038623,-150.0,0.00017999,2]
[402997085,1769031038632,-300.0,0.00017999,2]
[402997086,1769031038641,-500.0,0.00017999,2]
[402997087,1769031038651,-500.0,0.00017999,2]
[402997088,1769031038660,-174.04894204,0.00017999,2]
[402997089,1769031038670,-500.0,0.00017999,2]
[402997090,1769031038679,-558.23353976,0.00017999,2]
[402997091,1769031038688,-555.86812888,0.00017999,2]
[402997092,1769031038698,-500.0,0.00017999,2]
[402997093,1769031038707,-463.3101347,0.00017999,2]
[402997094,1769031038716,-293.47224938,0.00017999,2]
[402997095,1769031038725,-584.82422163,0.00017999,2]
[402997096,1769031038734,-500.0,0.00017999,2]
[402997097,1769031038743,-500.0,0.00017999,2]
[402997098,1769031038753,-500.0,0.00017999,2]
[402997099,1769031038762,-500.0,0.00017999,2]
[402997100,1769031038772,-500.0,0.00017999,2]
[402997101,1769031038781,-300.0,0.00017999,2]
[402997102,1769031038790,-500.0,0.00017999,2]
[402997103,1769031038800,-500.0,0.00017999,2]
[402997104,1769031038809,-500.0,0.00017999,2]
[402997105,1769031038819,-500.0,0.00017999,2]
[402997106,1769031038828,-500.0,0.00017999,2]
[402997107,1769031038837,-500.0,0.00017999,2]
[402997108,1769031038847,-500.0,0.00017999,2]
[402997109,1769031038856,-645.0,0.00017999,2]
[402997110,1769031038865,-500.0,0.00017999,2]
[402997111,1769031038875,-500.0,0.00017999,2]
[402997112,1769031038884,-500.0,0.00017999,2]
[402997113,1769031038894,-500.0,0.00017999,2]
[402997114,1769031038903,-500.0,0.00017999,2]
[402997115,1769031038912,-500.0,0.00017999,2]
[402997116,1769031038921,-500.0,0.00017999,2]
[402997117,1769031038931,-500.0,0.00017999,2]
[402997118,1769031038940,-500.0,0.00017999,2]
[402997119,1769031038950,-4801391.96113658,0.00018,2]
[402997120,1769031039347,-499.092,0.00018,2]
[402997121,1769031039363,-1282.2401957,0.00018,2]
[402997126,1769031041105,-200.0,0.00016751,2]
[402997127,1769031041114,-373.674504,0.00018,2]
[402997128,1769031041125,-90171.86233252,0.00018,2]
[402997129,1769031041136,-527403.55152075,0.00018,2]
[402997130,1769031041147,-10045.45113752,0.00018,2]
[402997131,1769031041218,-925.53500001,0.00018,2]
[402997132,1769031041229,-1790.09687237,0.00018,2]
[402997133,1769031041240,-461.92439387,0.00018,2]
[402997134,1769031041251,-25751.98746626,0.00018,2]
[402997135,1769031041282,-30362.88114781,0.00018,2]
[402997136,1769031041459,-1.7e-07,0.00018,2]
[402997137,1769031041502,-89618.65899423,0.00018,2]
[402997138,1769031041557,-5710.45240655,0.00018,2]
[402997139,1769031041568,-325.47403664,0.00018,2]
[402997140,1769031041579,-440485.872712,0.00018,2]
[402997141,1769031041590,-4314.1106964,0.00018,2]
[402997142,1769031041837,-2102.7773041,0.00018,2]
[402997143,1769031041853,-2859.63234024,0.00018,2]
[402997150,1769031042880,-7773.232497,0.00018,2]
[402997151,1769031042891,-1402.65568326,0.00018,2]
[402997152,1769031042902,-314.41419762,0.00018,2]
[402997153,1769031042917,-800.197906,0.00018,2]
[402997154,1769031042928,-3120.89105221,0.00018,2]
[402997155,1769031042963,-448.80928647,0.00018,2]
[402997156,1769031042975,-24029.43311997,0.00018,2]
[402997157,1769031042986,-26397.14237713,0.00018,2]
[402997158,1769031042996,-194572.44969953,0.00018,2]
[402997159,1769031043008,-511.66211449,0.00018,2]
[402997161,1769031043019,-289.04339989,0.00018,2]
[402997163,1769031043051,-655.979193,0.00018,2]
[402997164,1769031043062,-4826.17602559,0.00018,2]
[402997165,1769031043104,-33.53324393,0.00018,2]
[402997167,1769031043148,-554.21259143,0.00018,2]
[402997168,1769031043159,-1397.18855336,0.00018,2]
[402997170,1769031045792,-151.0,0.00017041,2]
[402997171,1769031045801,-500.0,0.0001799,2]
[402997172,1769031045811,-3299.711,0.00018,2]
[402997173,1769031045822,-15771.92765625,0.00018,2]
[402997174,1769031045833,-7936.93981358,0.00018,2]
[402997175,1769031045928,-3816.86806635,0.00018,2]
[402997176,1769031045939,-6421.73649204,0.00018,2]
[402997177,1769031045951,-9244.22685313,0.00018,2]
[402997178,1769031045962,-88110.55461809,0.00018,2]
[402997180,1769031045990,-908.31,0.00018,2]
[402997184,1769031046067,-1057.7123853,0.00018,2]
[402997185,1769031046079,-878.15443804,0.00018,2]
[402997187,1769031046256,-3685.37903782,0.00018,2]
[402997188,1769031046266,-6620.89107931,0.00018,2]
[402997193,1769031147037,500.0,0.000176,30]
[402997194,1769031147664,900.0,0.000176,30]
[402997196,1769031346176,187.43,0.00013608,2]
[402997197,1769031369402,-1129.58360985,0.00016121,2]
[402997198,1769031399386,-196.76014019,0.00016121,2]
[402997199,1769031402558,-154.97974583,0.00016121,2]
[402997200,1769031404658,-335.52109047,0.00016121,2]
[402997201,1769031407799,-211.16229621,0.00016121,2]
[402997203,1769031434683,257.181034,0.0001604,2]
[402997205,1769031608623,7496.012094,7.945e-05,2]
[402997206,1769031616842,-211.16229621,0.00016119,2]
[402997207,1769031616864,-98.95672706,0.00016121,2]
[402997208,1769031616886,-6.61060365,0.00016121,2]
[402997210,1769032104674,-233.13295432,0.00016121,2]
[402997211,1769032108413,-196.62396034,0.00016121,2]
[402997212,1769032110958,-449.68701886,0.00016121,2]
[402997213,1769032113759,-233.6890208,0.00016121,2]
[402997217,1769032231866,-666.96670514,0.00016121,2]
[402997218,1769032231898,-476.42925771,0.00016121,2]
[402997219,1769032231908,-243.38939635,0.00016121,2]
[402997220,1769032231917,-1997.7563,0.00016121,2]
[402997221,1769032231926,-58.32769271,0.00016121,2]
[402997222,1769032231937,-16276.87627361,0.00016121,2]
[402997223,1769032231948,-14739.09897313,0.00016121,2]
[402997224,1769032232005,-4044.20541293,0.00016121,2]
[402997225,1769032232016,-3755.76093945,0.00016121,2]
[402997226,1769032232027,-15636.91985274,0.00016121,2]
[402997267,1769032237838,-507.71285999,0.00016121,2]
[402997268,1769032237963,-476.9799995,0.00016121,2]
[402997274,1769032238235,-155544.34029594,0.00016121,2]
[402997276,1769032238245,-1200.0,0.0001621,2]
[402997277,1769032238255,-300.0,0.0001621,2]
[402997278,1769032238264,-1200.0,0.0001621,2]
[402997279,1769032238274,-1329.66,0.00016211,2]
[402997280,1769032238284,-151.0,0.00016211,2]
[402997281,1769032238293,-151.0,0.00016211,2]
[402997282,1769032238303,-151.0,0.00016211,2]
[402997283,1769032238312,-151.0,0.00016211,2]
[402997284,1769032238324,-151.0,0.00016211,2]
[402997285,1769032238334,-151.0,0.00016211,2]
[402997286,1769032238344,-151.0,0.00016211,2]
[402997287,1769032238353,-151.0,0.00016211,2]
[402997288,1769032238363,-500.0,0.00016211,2]
[402997289,1769032238373,-151.0,0.00016211,2]
[402997290,1769032238382,-500.0,0.00016211,2]
[402997291,1769032238391,-151.0,0.00016211,2]
[402997292,1769032238401,-500.0,0.00016211,2]
[402997293,1769032238410,-151.0,0.00016211,2]
[402997294,1769032238419,-500.0,0.00016211,2]
[402997295,1769032238428,-196.66172319,0.00016211,2]
[402997296,1769032238437,-200.0,0.00016211,2]
[402997297,1769032238446,-500.0,0.00016211,2]
[402997298,1769032238456,-500.0,0.00016211,2]
[402997299,1769032238465,-500.0,0.00016211,2]
[402997300,1769032238475,-303.55125424,0.00016211,2]
[402997301,1769032238484,-1000.0,0.00016221,2]
[402997302,1769032238494,-150.002145,0.00016289,2]
[402997303,1769032238503,-2256.52891716,0.00016319,2]
[402997304,1769032238512,-151.0,0.00016438,2]
[402997305,1769032238522,-815.66,0.00016447,2]
[402997306,1769032238531,-1329.66,0.00016485,2]
[402997307,1769032238541,-2256.52891716,0.00016516,2]
[402997308,1769032238550,-1000.0,0.00016624,2]
[402997309,1769032238559,-2256.52891716,0.00016714,2]
[402997310,1769032238570,-1329.66,0.00016759,2]
[402997311,1769032238579,-500.0,0.00016759,2]
[402997312,1769032238589,-151.0,0.00016761,2]
[402997313,1769032238598,-2256.52891716,0.00016912,2]
[402997314,1769032238608,-194.0,0.00016941,2]
[402997315,1769032238617,-1412.0,0.00016975,2]
[402997316,1769032238626,-1551.0,0.00017008,2]
[402997317,1769032238635,-1329.66,0.00017033,2]
[402997318,1769032238645,-484.09,0.00017041,2]
[402997319,1769032238654,-612.13,0.00017041,2]
[402997320,1769032238664,-612.13,0.00017041,2]
[402997321,1769032238673,-484.09,0.00017041,2]
[402997322,1769032238685,-484.09,0.00017041,2]
[402997323,1769032238694,-612.13,0.00017041,2]
[402997324,1769032238704,-484.09,0.00017041,2]
[402997325,1769032238714,-612.13,0.00017041,2]
[402997326,1769032238724,-485.35,0.00017041,2]
[402997327,1769032238733,-484.09,0.00017041,2]
[402997328,1769032238742,-500.0,0.00017041,2]
[402997329,1769032238752,-953.0,0.00017042,2]
[402997330,1769032238763,-200.0,0.00017088,2]
[402997331,1769032238772,-964.56,0.000171,2]
[402997332,1769032238781,-2256.52891716,0.00017109,2]
[402997333,1769032238790,-562.44150441,0.00017272,2]
[402997334,1769032238799,-632.56507241,0.00017306,2]
[402997335,1769032238808,-465.9956354,0.00017306,2]
[402997336,1769032238818,-500.0,0.00017306,2]
[402997337,1769032238827,-500.0,0.00017306,2]
[402997338,1769032238837,-500.0,0.00017306,2]
[402997339,1769032238847,-500.0,0.00017306,2]
[402997340,1769032238856,-500.0,0.00017306,2]
[402997341,1769032238866,-500.0,0.00017306,2]
[402997342,1769032238875,-500.0,0.00017306,2]
[402997343,1769032238884,-500.0,0.00017306,2]
[402997344,1769032238893,-500.0,0.00017306,2]
[402997345,1769032238903,-500.0,0.00017306,2]
[402997346,1769032238912,-500.0,0.00017306,2]
[402997347,1769032238922,-500.0,0.00017306,2]
[402997348,1769032238931,-500.0,0.00017306,2]
[402997349,1769032238940,-500.0,0.00017306,2]
[402997350,1769032238950,-500.0,0.00017306,2]
[402997351,1769032238960,-500.0,0.00017306,2]
[402997352,1769032238969,-500.0,0.00017306,2]
[402997353,1769032238979,-500.0,0.00017306,2]
[402997354,1769032238988,-500.0,0.00017306,2]
[402997355,1769032238997,-500.0,0.00017306,2]
[402997356,1769032239007,-500.0,0.00017306,2]